Cogmind - Beta 10.2 @@@ ROGUE MODE // 2021.03.11 @ 23:07:45 Player: Kitsuke Result: Destroyed by G-47 Trooper with Particle Gun Performance ------------- Evolutions (2) 1000 Regions Visited (4) 800 Robots Destroyed (46) 230 Value Destroyed (1579) 1579 Prototype IDs (3) 60 Alien Tech Used (0) 0 Bonus (37) 37 TOTAL SCORE: 3706 Bonus ------- Follower Combat Kills 37 Cogmind --------- Core Integrity 0/550 Matter 187/300 Energy 77/100 System Corruption 9% Temperature Cool (18) Movement Core (50) Location -8/Storage Parts ------- > --- POWER (3) -------- (None) > --- PROPULSION (3) --- (None) > --- UTILITY (3) ------ (None) > --- WEAPON (2) ------- (None) > --- INVENTORY (4) ---- Armored Wheel Particle Charger Advanced EMP Blaster Peak State ------------ > --- POWER ------------ Improved Ion Engine Heavy Ion Engine Light Nuclear Core > --- PROPULSION ------- Compact Wheel Armored Wheel > --- UTILITY ---------- Improved Heat Sink Weight Redist. System Particle Charger > --- WEAPON ----------- Assault Cannon Assault Cannon > --- INVENTORY -------- Aluminum Leg Aluminum Leg Aluminum Leg Particle Charger [Rating: 25] Favorites ----------- Power Improved Ion Engine Engine Improved Ion Engine Power Core Light Nuclear Core Propulsion Aluminum Leg Treads Light Treads Leg Aluminum Leg Wheel Armored Wheel Flight Unit Flight Unit Utility Heat Sink Device Heat Sink Storage Large Storage Unit Protection Weapon Shielding Weapon Assault Cannon Energy Gun Beam Rifle Energy Cannon Beam Cannon Ballistic Gun Assault Rifle Ballistic Cannon Assault Cannon Launcher Advanced EMP Blaster Impact Weapon Hammer Build | -11 -10 -9 -8 -8 ------- Run | Scr Mat Mat Mat Sto Slots Evolved 4 | . . 2 2 . Power 2 | . . 1 1 . Propulsion 1 | . . . 1 . Utility 1 | . . 1 . . Weapon . | . . . . . Parts Attached 64 | 6 7 32 4 15 Power 9 | 1 1 4 2 1 Engine 7 | 1 1 4 1 . Core 2 | . . . 1 1 Reactor . | . . . . . Propulsion 20 | 2 2 11 2 3 Treads 2 | . . 2 . . Leg 12 | . 2 7 . 3 Wheel 4 | 2 . . 2 . Hover . | . . . . . Flight 2 | . . 2 . . Utility 12 | 1 1 7 . 3 Device 10 | 1 1 5 . 3 Storage 1 | . . 1 . . Processor . | . . . . . Hackware . | . . . . . Protection 1 | . . 1 . . Artifact . | . . . . . Weapon 23 | 2 3 10 . 8 Energy Gun 7 | 2 1 4 . . Energy Cannon 3 | . 1 2 . . Ballistic Gun 3 | . 1 1 . 1 Ballistic Cannon 6 | . . 3 . 3 Launcher 3 | . . . . 3 Special Weapon . | . . . . . Impact Weapon 1 | . . . . 1 Slashing Weapon . | . . . . . Piercing Weapon . | . . . . . Special Melee Weapon . | . . . . . Unidentified Prototypes 3 | . . 1 . 2 Parts Lost 31 | . 2 15 . 14 Power 6 | . . 3 . 3 Propulsion 8 | . . 5 . 3 Utility 6 | . . 3 . 3 Weapon 11 | . 2 4 . 5 Highest Loss Streak 8 | . 2 8 . 8 Average Slot Usage (%) 77 | . 85 73 74 80 Engine 14 | . 14 15 14 12 Core 3 | . . . 4 8 Leg 9 | . 9 13 . 5 Wheel 7 | . 18 . 10 13 Device 21 | . 19 19 27 24 Energy Gun 2 | . 8 2 . 1 Energy Cannon 2 | . 4 3 . . Ballistic Gun 2 | . 9 2 . . Ballistic Cannon 10 | . . 12 18 11 Naked Turns 11 | . . 2 . 9 Heaviest Build 34 | 7 19 29 34 34 Greatest Support 40 | 20 26 40 34 36 Greatest Overweight (x) 2 | . . 2 1 1 Average Overweight (x) . | . . . . . Largest Inventory Capacity 10 | 4 4 10 4 4 Average Capacity 4 | 4 4 4 4 4 Most Carried 4 | . 4 4 4 4 Average Carried 2 | . 1 2 3 3 Final Capacity 4 | 4 4 4 4 4 Final Carried 4 | . 3 4 3 3 Class Distribution -------------------- 90% | Mutant 9% | Scavenger-Mutant Dominant Class ---------------- Mutant | -10/Materials Mutant | -9/Materials Mutant | -8/Materials Mutant | -8/Storage Resources | -11 -10 -9 -8 -8 ----------- Run | Scr Mat Mat Mat Sto Matter Collected 1201 | 260 36 411 105 389 Remotely . | . . . . . Salvage Created 1331 | 43 50 643 105 490 Parts 87 | 2 6 50 4 25 Haulers Intercepted . | . . . . . Recyclers Shooed 2 | . . 2 . . Parts Field Recycled 7 | . 3 4 . . Retrieved Matter 135 | . 27 108 . . Parts Self-Destructed . | . . . . . Prevented . | . . . . . Kills | -11 -10 -9 -8 -8 ------- Run | Scr Mat Mat Mat Sto Combat Hostiles Destroyed 39 | 1 1 22 2 13 Guns 10 | 1 1 8 . . Cannons 27 | . . 14 2 11 AOE 2 | . . . . 2 Classes Destroyed 5 | 1 1 2 . 1 Watcher 7 | . 1 4 1 1 Swarmer 9 | . . 8 . 1 Grunt 17 | 1 1 9 . 6 Brawler 2 | . . . . 2 Sentry 11 | . . 5 2 4 Best Kill Streak 6 | 1 1 6 2 2 Combat Bots Only 6 | 1 1 6 2 2 Max Kills in Single Turn 2 | 1 1 2 1 1 Gunslinging 1 | . . 1 . . Exploded 1 | . . . . 1 Melee . | . . . . . Uniques/NPCs Destroyed . | . . . . . Combat | -11 -10 -9 -8 -8 -------- Run | Scr Mat Mat Mat Sto Damage Taken 3896 | 22 228 1761 75 1810 Core 931 | . 58 310 15 548 Absorbed by Shields . | . . . . . Core Remaining (%) 66 | 100 76 22 . . Volleys Fired 144 | 2 17 76 6 43 Largest 2 | 2 2 2 2 2 Hottest 130 | 90 90 130 88 88 Shots Fired 270 | 4 28 149 12 77 Gun 97 | 4 24 57 . 12 Cannon 168 | . 4 92 12 60 Launcher 5 | . . . . 5 Special . | . . . . . Kinetic 146 | . 6 68 12 60 Thermal 117 | 4 20 81 . 12 Explosive . | . . . . . Electromagnetic 7 | . 2 . . 5 Robot Hit Streak 10 | 4 9 10 4 9 Robot Miss Streak 7 | . 7 4 2 2 Penetration Max . | . . . . . Secondary Targets 1 | . . 1 . . Max Gunslinging Chain 1 | . . 1 . . Shots Hit Robots 179 | 4 15 96 5 59 Core Hits 78 | 2 5 44 3 24 Critical Hits 2 | . 1 . . 1 Critical Kills . | . . . . . Critical Parts Destroyed 2 | . 1 . . 1 Melee Attacks 8 | . . . . 8 Impact 8 | . . . . 8 Slashing . | . . . . . Piercing . | . . . . . Sneak Attacks . | . . . . . Combat Hostiles . | . . . . . Follow-up Attacks . | . . . . . Damage Inflicted 3690 | 48 216 1690 117 1619 Guns 887 | 48 198 532 . 109 Cannons 2407 | . 18 1158 117 1114 Explosions 282 | . . . . 282 Melee 68 | . . . . 68 Ramming 46 | . . . . 46 Kinetic 2066 | . 24 811 117 1114 Thermal 1204 | 48 168 879 . 109 Explosive . | . . . . . Electromagnetic 306 | . 24 . . 282 Impact 68 | . . . . 68 Slashing . | . . . . . Piercing . | . . . . . Highest Corruption 9 | . . . . 9 Average Corruption 6 | . . . . 6 Corruption Purged . | . . . . . Effects 10 | . . . . 10 Message Errors 2 | . . . . 2 Matter Fused 1 | . . . . 1 Energy Discharges 2 | . . . . 2 Data Loss (minor) 1 | . . . . 1 Data Loss (major) 2 | . . . . 2 Misfires 1 | . . . . 1 Targeting Errors 1 | . . . . 1 Overload Shots . | . . . . . Overflow Damage 26 | . . 19 . 7 Projectiles 23 | . . 19 . 4 Explosions 3 | . . . . 3 Melee . | . . . . . Knockbacks 10 | . . 6 . 4 Impact . | . . . . . Kinetic 10 | . . 6 . 4 Secondary . | . . . . . Self-Inflicted Damage 125 | . . . . 125 Shots 5 | . . . . 5 Rammed 9 | . . . . 9 Targets Rammed 10 | . . . . 10 Kicked 1 | . . . . 1 Crushed . | . . . . . Highest Temperature 326 | 52 36 326 27 162 Average Temperature 70 | 29 19 91 9 45 Received Heat Transfer 1272 | 12 129 528 18 585 Effects 2 | . . 2 . . Energy Bleed 2 | . . 2 . . Siege Activations . | . . . . . Robots Corrupted . | . . . . . Combat Hostiles . | . . . . . Parts Fried . | . . . . . Impact Corruptions . | . . . . . Robots Melted . | . . . . . Combat Hostiles . | . . . . . Parts Melted 3 | 1 . 2 . . Heat Transferred 2617 | 124 457 1629 . 407 Parts Sabotaged . | . . . . . Parts Stolen . | . . . . . Parts Stripped . | . . . . . Power Chain Reactions . | . . . . . Missiles Intercepted . | . . . . . Alert | -11 -10 -9 -8 -8 ------- Run | Scr Mat Mat Mat Sto Peak Influence 450 | 20 95 450 279 334 Initial 165 | . 13 39 165 117 Average 215 | 4 62 267 233 230 Maximum Alert Level 2 | . . 2 1 1 Low Security (%) 43 | 100 100 36 25 26 Level 1 48 | . . 45 74 73 Level 2 7 | . . 17 . . Level 3 . | . . . . . Level 4 . | . . . . . Level 5 . | . . . . . High Security . | . . . . . Max Security . | . . . . . Squads Dispatched 5 | . . 1 . 4 Investigation 1 | . . 1 . . Extermination . | . . . . . Reinforcement 2 | . . . . 2 Assault 2 | . . . . 2 Garrison . | . . . . . Intercept . | . . . . . Construction Impeded 1 | . . . . 1 Haulers Reinforced . | . . . . . Stealth | -11 -10 -9 -8 -8 --------- Run | Scr Mat Mat Mat Sto Distress Signals 6 | . . 4 . 2 Communications Jammed . | . . . . . Distress Signals . | . . . . . Times Spotted 79 | 1 6 40 4 28 Peak Tracking Total 10 | 1 3 5 3 10 Tactical Retreats 9 | . 1 4 . 4 Traps | -11 -10 -9 -8 -8 ------- Run | Scr Mat Mat Mat Sto Traps Triggered 2 | . . 1 . 1 Indirectly . | . . . . . Trap Hack Attempts . | . . . . . Triggered . | . . . . . Disarmed . | . . . . . Reprogrammed . | . . . . . Reused . | . . . . . Traps Extracted . | . . . . . Installed . | . . . . . Triggered . | . . . . . Machines | -11 -10 -9 -8 -8 ---------- Run | Scr Mat Mat Mat Sto Machines Disabled 11 | . 1 5 . 5 Max in Single Turn 2 | . 1 1 . 2 Machines Sabotaged . | . . . . . Garrisons Compromised . | . . . . . Overloaded Fab Kills . | . . . . . Fab Network Shutdowns . | . . . . . Hacking | -11 -10 -9 -8 -8 --------- Run | Scr Mat Mat Mat Sto Machines Accessed 2 | . . 1 . 1 Terminals 1 | . . 1 . . Fabricators . | . . . . . Repair Stations 1 | . . . . 1 Recycling Units . | . . . . . Scanalyzers . | . . . . . Garrison Access . | . . . . . Total Hacks 4 | . . 1 . 3 Successful 4 | . . 1 . 3 Failed . | . . . . . Catastrophic . | . . . . . Database Lockouts . | . . . . . Manual . | . . . . . Terminals 1 | . . 1 . . Fabricators . | . . . . . Repair Stations 3 | . . . . 3 Recycling Units . | . . . . . Scanalyzers . | . . . . . Garrison Access . | . . . . . Terminal Hacks 1 | . . 1 . . Record 1 | . . 1 . . Fabricator Hacks . | . . . . . Repair Station Hacks 3 | . . . . 3 Scan Component 1 | . . . . 1 Repair 1 | . . . . 1 Refit 1 | . . . . 1 Recycling Unit Hacks . | . . . . . Scanalyzer . | . . . . . Garrison Access Hacks . | . . . . . Unauthorized Hacks . | . . . . . Terminals . | . . . . . Fabricators . | . . . . . Repair Stations . | . . . . . Recycling Units . | . . . . . Scanalyzers . | . . . . . Garrison Access . | . . . . . Data Cores Recovered . | . . . . . Used . | . . . . . Hacking Detections 1 | . . 1 . . Full Trace Events . | . . . . . Feedback Events . | . . . . . Feedback Blocked . | . . . . . Robot Schematics Acquired . | . . . . . Robots Built . | . . . . . Matter . | . . . . . Time . | . . . . . Total Robot Build Rating . | . . . . . Part Schematics Acquired . | . . . . . Parts Built . | . . . . . Matter . | . . . . . Time . | . . . . . Total Part Build Rating . | . . . . . Parts Repaired 1 | . . . . 1 Time 38 | . . . . 38 Parts Recycled . | . . . . . Recycled Matter . | . . . . . Retrieved Matter . | . . . . . Retrieved Components . | . . . . . Parts Scanalyzed . | . . . . . Part Schematics Acquired . | . . . . . Parts Damaged . | . . . . . Bothacking | -11 -10 -9 -8 -8 ------------ Run | Scr Mat Mat Mat Sto Used RIF Installer . | . . . . . Robots Hacked . | . . . . . Non-combat . | . . . . . Combat . | . . . . . Robot Hacks Applied . | . . . . . Relay Couplers Released . | . . . . . Robots Rewired . | . . . . . Allies Hacked . | . . . . . Hacks Repelled . | . . . . . Allies | -11 -10 -9 -8 -8 -------- Run | Scr Mat Mat Mat Sto Total Allies 2 | . . . . 2 Largest Group 2 | . . . . 2 Highest-Rated Group 62 | . . . . 62 Highest-Rated Ally 31 | . . . . 31 Total Orders . | . . . . . Ally Attacks 13 | . . . . 13 Total Damage 252 | . . . . 252 Kills 1 | . . . . 1 Allies Corrupted . | . . . . . Allies Melted . | . . . . . Intel | -11 -10 -9 -8 -8 ------- Run | Scr Mat Mat Mat Sto Robot Analysis Total . | . . . . . Derelict Logs Recovered . | . . . . . Drone Launches . | . . . . . Drone Recoveries . | . . . . . Exploration | -11 -10 -9 -8 -8 ------------- Run | Scr Mat Mat Mat Sto Turns Passed 2448 | 69 357 1067 201 754 Spaces Moved 1609 | 75 317 552 173 492 Core 93 | 20 . 45 . 28 Treads 11 | . . 11 . . Legs 652 | . 88 494 . 70 Wheels 851 | 55 229 . 173 394 Hover . | . . . . . Flight 2 | . . 2 . . Fastest Speed 50 | 50 80 50 95 50 Average Speed 108 | 72 91 137 99 96 Slowest Speed 180 | 80 120 180 100 120 Overloaded Moves . | . . . . . Propulsion Burnouts . | . . . . . Robots Hopped . | . . . . . Cave-ins Triggered . | . . . . . Exploration Rate (%) 31 | 6 45 58 13 37 Regions Visited 4 Branch Regions 1 Pre-discovered Areas . | . . . . . Known Exits Taken . | . . . . . Unknown Exits Taken 4 | 1 1 1 1 . Scrap Searched . | . . . . . Spaces Dug . | . . . . . Terrain Destroyed 13 | . . 7 2 4 Melee . | . . . . . Projectile 13 | . . 7 2 4 AOE . | . . . . . Terrain Rammed . | . . . . . Walls Destroyed . | . . . . . Machines Disabled . | . . . . . Actions | -11 -10 -9 -8 -8 --------- Run | Scr Mat Mat Mat Sto Total 2022 | 82 356 710 190 684 Wait 114 | . 4 21 . 89 Move 1605 | 74 316 551 172 492 Hop . | . . . . . Pick Up 34 | . 7 15 4 8 Fast Attach 23 | 6 3 9 3 2 Attach 16 | . . 10 1 5 Detach 8 | . . 5 . 3 Swap 25 | . 4 13 . 8 Drop 27 | . 5 10 4 8 Fire 144 | 2 17 76 6 43 Melee 8 | . . . . 8 Ram 8 | . . . . 8 Kick 2 | . . . . 2 Crush . | . . . . . Escape Stasis 8 | . . . . 8 Rewire . | . . . . . Trap . | . . . . . Miscellaneous . | . . . . . Route ------- -11/Scrapyard -10/Materials -9/Materials -8/Materials -8/Storage History --------- Turn | Location | Event 2 | -11/Scrapyard | Met Revision 17 45 | -11/Scrapyard | Discovered new exit (range 8) 70 | -11/Scrapyard | Entered Materials 330 | -10/Materials | Build established: Mutant 408 | -10/Materials | Discovered new exit (range 16) 427 | -10/Materials | Entered another Materials area 427 | -9/Materials | Evolved 2 slots: Power x1, Utility x1 627 | -9/Materials | Lost 8 parts (1p2n3u2w) 958 | -9/Materials | Core integrity fell below 50% 1021 | -9/Materials | Lost 3 parts (1p1n1w) 1484 | -9/Materials | Discovered new exit (range 5) 1494 | -9/Materials | Entered another Materials area 1494 | -8/Materials | Evolved 2 slots: Power x1, Propulsion x1 1540 | -8/Materials | Discovered new exit (range 15) 1695 | -8/Materials | Entered Storage 1944 | -8/Storage | Met a pair of Derelict thieves 2109 | -8/Storage | Repaired Assault Cannon 2232 | -8/Storage | Lost 4 parts (1p1n1u1w) 2418 | -8/Storage | Core integrity fell below 50% 2446 | -8/Storage | Core integrity fell below 20% 2449 | -8/Storage | Destroyed by G-47 Trooper with Particle Gun Last Messages --------------- S-10 Pest IFF system glitched. Adv. EMP Blaster destroyed. R-06 Scavenger collects Flight Unit. Hammer destroyed. R-06 Scavenger collects Lgt. Assault Rifle. Slammed into A-02 Transporter. WFRML,UC0EHCXLDM#0GSK>PB Slammed into A-02 Transporter. Weight Redist. System permanently disabled. Destabilizing: Short circuit. Slammed into A-02 Transporter. Imp. Heat Sink destroyed. K-01 Serf collects debris. Dropped Broken Weight Redist. System. Dropped Aluminum Leg. K-01 Serf collects debris. Slammed into G-47 Trooper. Destabilizing: Core damaged (-5). Slammed into G-47 Trooper. Destabilizing: Core damaged (-22). Map ----- +----------------------------------------------------+ | | | | | | | | | | | | | | | | | | | | | | | ?#####????????????????????????????? | | # ???????????????????????????? | | # ???????????????????????????? | | ? """????????????????????????????? | | ? """????????????????????????????? | | ?? ""?????????????????????????????? | | #?*= ?????????????????????????????? | | ###+#### #??????????###???????? | | + % #????????[[[??###### | | ###^######## ???????????[[[??# ! # | | #?# #??????# ??????????#" "### # | | #?# #??????# ??????????# T?# # | | #?# #?????# ###########g#### # | | #?# ####??# Y s g s # | | #?# #??# ##/#######g@g###!=! # | | #?# #####+## ### #?# ] # | | ### ## # """ ""# #?# # | | #?# # """ Y"# #?# # | | ###### ### / """ ""# #?###### | | ?????# ## # ### #??????? | | ?????# ## # #?# #??????? | | ######/## ########?# #??????? | | # #????????#a #??????? | | # !#????????# #??????? | | # #???????? +??????? | | ######???????? #??????? | | ##########????????????? #??????? | | #######???????????????? ??????? | | # ]]#???????????????? ##???????? | | " #???????????????? ?????????? | | ! ]#???????????????????????????? | | " #???????????????????????????? | | # ] #???????????????????????????? | | ## ] ]#???????????????????????????? | | ?######???????????????????????????? | | ??????????????????????????????????? | | ??????????????????????????????????? | | ??????????????????????????????????? | | ??????????????????????????????????? | +----------------------------------------------------+ Best States ------------- Heat Dissipation 59 Energy Generation 30 Energy Capacity 505 Matter Stores 300 Matter Capacity 300 Sight Range 16 Terrain Scan Density 10 Additional Mass Support 6 Weapon Shielding 33 Evasion (%) 50 Recoil Reduction 2 Particle Charging 15 Item Schematics ----------------- None Robot Schematics ------------------ None Fabricated ------------ Nothing Alien Tech Used ----------------- None Achievements -------------- None Challenges ------------ None Game ------ Seed BurstTerrabombKinecellerator Manual? 0 Play Time 00:48:52 Cumulative 4.6 hours Start 2021.03.11 @ 22:20:42 End 2021.03.11 @ 23:07:45 Sessions 1 Manual Loads 0 Difficulty Rogue Special Mode None Game No. 6 Rogue 6 Adventurer 0 Explorer 0 Win Type - Total 0 Types 0/0/0/0/0/0/0/0/0 Lore% 1 Gallery% 9 Achievement% 4 Wizard Run 0 Options --------- ASCII 0 Keyboard 0 Movement Mouse Keybinds 0 Fullscreen 1 Font 18/SmallcapsGlow Map View 76x50 Tactical HUD 0 Map Filters NONE Filters NONE Steam 1 RUN: 1c5307fc-7ccc-4489-b3ef-89fd3841f5ca